bitfinex/quotes_SOLUSD_20241016
["timestamp","ask_amount","ask_price","bid_price","bid_amount"]
[1729102536888,4.8001191,154.8,154.78,0.6226661]
[1729102537092,6.4596,154.81,154.78,0.6226661]
[1729102538866,30.237184,154.79,154.78,0.6226661]
[1729102539066,35.03444853,154.79,154.78,0.6226661]
[1729102539288,35.03444853,154.79,154.78,0.9340581]
[1729102539978,71.25754853,154.79,154.78,0.9340581]
[1729102541661,81.57448693,154.79,154.78,0.9340581]
[1729102541865,71.25754853,154.79,154.78,0.9340581]
[1729102542691,81.86209296,154.79,154.78,0.9340581]
[1729102542875,71.25754853,154.79,154.78,0.9340581]
[1729102543385,58.19460027,154.79,154.78,0.9340581]
[1729102543591,41.24279721,154.79,154.78,0.9340581]
[1729102544791,75.96725583,154.79,154.78,0.9340581]
[1729102544991,65.01968121,154.79,154.78,0.9340581]
[1729102546888,75.28458603,154.79,154.78,0.9340581]
[1729102547074,65.01968121,154.79,154.78,0.9340581]
[1729102547486,65.00533312,154.79,154.78,0.9340581]
[1729102548083,35.00533312,154.79,154.78,0.9340581]
[1729102551094,65.00533312,154.79,154.78,0.9340581]
[1729102551393,75.08457461,154.79,154.78,0.9340581]
[1729102552395,75.08137453,154.79,154.78,0.9340581]
[1729102552593,75.08128024,154.79,154.78,0.9340581]
[1729102552797,70.31642549,154.79,154.78,0.9340581]
[1729102552972,75.08125909,154.79,154.78,0.9340581]
[1729102554179,60.237184,154.79,154.78,0.9340581]
[1729102560506,36.4603,154.79,154.78,0.9340581]
[1729102561996,30.0,154.79,154.78,0.9340581]
[1729102562501,6.4591,154.82,154.78,18.92213523]
[1729102563002,6.4589,154.83,154.79,6.4601]
[1729102566998,6.4589,154.83,154.78,12.46163523]
[1729102566999,6.4589,154.83,154.78,18.92223523]
[1729102571795,48.5253,154.88,154.78,18.92223523]
[1729102571796,6.4591,154.82,154.78,18.92223523]
[1729102575414,47.022884,154.84,154.78,0.9340581]
[1729102575586,30.237184,154.79,154.78,0.9340581]
[1729102576092,34.77845155,154.79,154.78,0.9340581]
[1729102576288,6.4587,154.83,154.78,18.92233523]
[1729102576611,11.23907147,154.82,154.78,18.92233523]
[1729102576794,6.4603,154.79,154.78,0.9340581]
[1729102578886,36.4603,154.79,154.78,0.9340581]
[1729102579089,30.0,154.79,154.78,0.9340581]
[1729102581417,16.1461,154.84,154.78,0.9340581]
[1729102581418,6.4602,154.8,154.78,0.9340581]
[1729102582691,6.4603,154.79,154.78,0.9340581]
[1729102583894,35.02288364,154.79,154.78,0.9340581]
[1729102585286,35.22288364,154.79,154.78,0.9340581]
[1729102585622,65.02288364,154.79,154.78,0.9340581]
[1729102586595,65.02006788,154.79,154.78,0.9340581]
[1729102586797,75.09313116,154.79,154.78,0.9340581]
[1729102587105,65.02006788,154.79,154.78,0.9340581]
[1729102587789,35.02006788,154.79,154.78,0.9340581]
[1729102590412,11.24318388,154.79,154.78,0.9340581]
[1729102590609,4.78321217,154.79,154.78,0.9340581]
[1729102590812,34.78321217,154.79,154.78,18.92233523]
[1729102591020,34.78321217,154.79,154.78,38.92233523]
[1729102591188,6.4569,154.88,154.79,20.0]
[1729102591393,31.9181,154.92,154.83,6.4586]
[1729102591594,6.4571,154.87,154.83,6.4586]
[1729102591810,0.1,154.9,154.78,7.2983581]
[1729102592015,6.4587,154.83,154.78,25.28653523]
[1729102592712,16.1422,154.88,154.78,7.2983581]
[1729102593020,6.4583,154.84,154.79,17.98757713]
[1729102593310,6.4575,154.86,154.81,17.98707713]
[1729102594011,6.4583,154.84,154.81,11.52757713]
[1729102594404,6.4577,154.86,154.81,11.52757713]
[1729102594716,6.4577,154.86,154.81,17.98687713]
[1729102595715,6.4581,154.85,154.81,11.52757713]
[1729102597202,6.4587,154.83,154.79,6.4601]
[1729102598405,6.4595,154.81,154.78,0.9340581]
[1729102600202,23.776884,154.86,154.78,0.9340581]
[1729102600398,6.46,154.8,154.78,0.9340581]
[1729102600817,16.1465,154.84,154.78,0.9340581]
[1729102601015,6.4603,154.79,154.78,0.9340581]
[1729102602404,6.4598,154.81,154.78,0.9340581]
[1729102602729,6.4591,154.82,154.78,7.3947581]
[1729102603103,6.4579,154.85,154.81,6.4594]
[1729102603397,16.165,154.89,154.81,6.4594]
[1729102603398,4.78928257,154.84,154.81,6.4594]
[1729102603606,26.24912537,154.89,154.8,11.52757713]
[1729102603607,4.78928257,154.83,154.82,6.4591]
[1729102603806,6.4566,154.88,154.82,11.52757713]
[1729102604096,4.79051846,154.87,154.84,6.4578]
[1729102604298,6.4566,154.88,154.84,6.4578]
[1729102604598,4.79038274,154.87,154.84,6.4578]
[1729102604811,6.4566,154.88,154.84,6.4578]
[1729102605200,4.79166495,154.87,154.84,6.4578]
[1729102605507,6.4566,154.88,154.84,6.4578]
[1729102605827,10.08412537,154.89,154.84,11.52757713]
[1729102606128,4.78995655,154.88,154.84,11.52757713]
[1729102606304,6.4558,154.9,154.84,11.52757713]
[1729102606508,4.78860888,154.89,154.84,11.52757713]
[1729102606821,6.4554,154.91,154.86,11.52757713]
[1729102607003,4.78912814,154.9,154.86,11.52757713]
[1729102607202,10.08103742,154.92,154.86,11.52757713]
[1729102607401,4.78780015,154.91,154.86,11.52757713]
[1729102607624,4.78780015,154.9,154.86,11.52757713]
[1729102607802,16.53603742,154.92,154.86,11.52757713]
[1729102608003,4.78795547,154.91,154.86,11.52757713]
[1729102608329,10.08103742,154.92,154.88,11.52757713]
[1729102608506,4.78556173,154.91,154.88,11.52757713]
[1729102608826,10.08103742,154.92,154.9,11.52757713]
[1729102610124,10.08103742,154.92,154.9,26.78657713]
[1729102613716,6.4523,154.99,154.9,26.78657713]
[1729102613935,6.4523,154.99,154.93,11.52757713]
[1729102614103,23.776884,154.98,154.9,15.259]
[1729102614310,23.776884,154.98,154.89,31.52757713]
[1729102614311,6.4538,154.95,154.89,31.52757713]
[1729102615013,33.85299258,154.98,154.86,15.259]
[1729102615219,6.4546,154.93,154.86,15.259]
[1729102615415,6.4546,154.93,154.86,26.78657713]
[1729102615842,6.4546,154.93,154.86,15.259]
[1729102616205,6.4546,154.93,154.87,20.0]
[1729102616619,6.4556,154.91,154.84,6.0133]
[1729102617437,6.4558,154.9,154.84,6.0133]
[1729102617626,30.0,154.89,154.84,6.0133]
[1729102619722,30.0,154.89,154.82,20.0]
[1729102620440,6.4566,154.88,154.82,20.0]
[1729102621018,30.0,154.89,154.82,20.0]
[1729102621637,36.4562,154.89,154.82,20.0]
[1729102622210,6.4566,154.88,154.82,20.0]
[1729102622632,6.4571,154.87,154.81,16.0921]
[1729102622838,6.4575,154.86,154.8,20.0]
[1729102623019,36.4579,154.85,154.8,20.0]
[1729102623435,36.4579,154.85,154.79,6.3159]
[1729102623632,36.4579,154.85,154.78,20.6226661]
[1729102624842,36.4579,154.85,154.8,6.4596]
[1729102625220,36.4579,154.85,154.78,20.6226661]
[1729102625221,45.1838,154.85,154.78,0.6226661]
[1729102625440,45.1838,154.85,154.78,7.0833661]
[1729102625642,6.4587,154.83,154.78,7.0833661]
[1729102625831,30.0,154.82,154.78,0.6226661]
[1729102626229,30.0,154.82,154.8,6.4595]
[1729102626537,30.0,154.82,154.79,6.4603]
[1729102626751,30.0,154.82,154.78,7.0833661]
[1729102626929,6.4587,154.83,154.78,7.0833661]
[1729102627639,6.46,154.8,154.78,0.6226661]
[1729102628634,6.4596,154.81,154.78,0.6226661]
[1729102628830,6.4602,154.8,154.78,0.6226661]
[1729102629741,6.4603,154.79,154.78,0.6226661]
[1729102631622,36.4603,154.79,154.78,0.6226661]
[1729102635734,60.237184,154.79,154.78,0.6226661]
[1729102636040,36.4603,154.79,154.78,0.6226661]
[1729102642048,30.0,154.79,154.78,0.6226661]
[1729102644966,6.4578,154.86,154.81,6.4595]
[1729102645157,30.0,154.82,154.81,6.4595]
[1729102645835,6.4573,154.87,154.83,6.4586]
[1729102646156,13.11310213,154.88,154.83,6.4586]
[1729102646338,13.11310213,154.88,154.84,6.4582]
[1729102646548,30.0,154.85,154.84,6.4582]
[1729102646946,6.65522958,154.91,154.83,18.02162176]
[1729102647133,6.4554,154.91,154.83,18.02162176]
[1729102647746,6.455,154.92,154.84,16.3156]
[1729102648143,6.4554,154.91,154.84,16.3156]
[1729102649234,6.4558,154.9,154.84,16.3156]
[1729102649437,6.4566,154.88,154.84,16.3156]
[1729102649636,6.4566,154.88,154.8,53.89452176]
[1729102650367,16.1368,154.93,154.81,23.776884]
[1729102650546,6.4556,154.91,154.83,18.02162176]
[1729102651049,6.4549,154.92,154.84,23.776884]
[1729102652468,6.4549,154.92,154.85,6.4529]
[1729102653846,21.78628521,154.94,154.85,6.4529]
[1729102654470,6.4553,154.92,154.85,6.4529]
[1729102655064,6.4546,154.93,154.86,38.02162176]
[1729102655369,6.4546,154.93,154.86,53.52272176]
[1729102655571,6.4549,154.92,154.86,35.5011]
[1729102656643,6.4546,154.93,154.86,35.5011]
[1729102657042,6.4546,154.93,154.86,53.52272176]
[1729102658976,6.4537,154.95,154.88,18.02162176]
[1729102661566,6.4557,154.91,154.86,35.5011]
[1729102661875,6.4557,154.91,154.85,6.4529]
[1729102662050,6.4557,154.9,154.85,6.4529]
[1729102662446,6.4565,154.89,154.83,20.0]
[1729102663350,6.4558,154.9,154.83,20.0]
[1729102663546,6.4554,154.91,154.83,20.0]
[1729102663772,6.4548,154.93,154.86,18.02162176]
[1729102664247,6.4548,154.93,154.84,41.79850576]
[1729102664448,6.4548,154.93,154.85,20.0]
[1729102664857,9.2309993,154.92,154.85,20.0]
[1729102665058,6.4548,154.93,154.85,20.0]
[1729102665481,22.79308269,154.97,154.85,20.0]
[1729102665482,6.4549,154.92,154.85,20.0]
[1729102666173,23.776884,154.94,154.83,20.0]
[1729102666392,6.4559,154.9,154.83,20.0]
[1729102666573,23.776884,154.94,154.83,20.0]
[1729102666769,6.4554,154.91,154.83,20.0]
[1729102667176,16.1345,154.95,154.83,20.0]
[1729102667177,6.4538,154.95,154.88,20.0]
[1729102667486,6.4535,154.96,154.89,18.02162176]
[1729102667983,6.66058269,154.97,154.91,33.39732176]
[1729102668287,6.4532,154.96,154.9,20.0]
[1729102668883,6.4532,154.96,154.87,21.3772]
[1729102668884,6.4549,154.93,154.88,20.0]
[1729102670791,6.4549,154.93,154.87,15.3757]
[1729102671081,6.4549,154.93,154.85,18.02162176]
[1729102671082,6.4555,154.91,154.83,39.91412176]
[1729102671485,23.876884,154.96,154.83,21.7925]
[1729102671676,6.4564,154.89,154.83,15.3195]
[1729102671872,6.4566,154.88,154.83,15.3195]
[1729102672175,23.776884,154.89,154.79,22.7286]
[1729102672367,30.0,154.87,154.79,22.7286]
[1729102672569,6.4579,154.85,154.79,22.7286]
[1729102673382,6.4579,154.85,154.8,20.0]
[1729102673586,30.0,154.84,154.8,20.0]
[1729102674478,6.4579,154.85,154.8,20.0]
[1729102675075,23.776884,154.89,154.79,16.3999]
[1729102675272,6.4584,154.84,154.8,6.4598]
[1729102675683,23.776884,154.83,154.78,0.6226661]
[1729102675989,6.4596,154.81,154.78,0.6226661]
[1729102677375,30.0,154.8,154.78,0.6226661]
[1729102680976,30.0,154.8,154.78,7.0832661]
[1729102681588,30.0,154.8,154.79,6.4603]
[1729102682817,6.4579,154.85,154.8,6.4597]
[1729102686085,6.4587,154.83,154.79,6.4603]
[1729102686299,6.4587,154.83,154.78,0.6226661]
[1729102686300,6.4599,154.8,154.78,0.6226661]
[1729102686487,6.4595,154.81,154.78,0.6226661]
[1729102686894,10.27284359,154.8,154.78,0.6226661]
[1729102687090,6.4595,154.81,154.78,0.6226661]
[1729102689392,6.4603,154.79,154.78,0.6226661]
[1729102689582,30.237184,154.79,154.78,0.6226661]
[1729102691006,46.13566312,154.79,154.78,0.6226661]
[1729102691205,28.74164024,154.79,154.67,6.0962]
[1729102691403,6.4624,154.74,154.69,6.4642]
[1729102692180,9.95260845,154.73,154.69,6.4642]
[1729102692385,6.4624,154.74,154.69,6.4642]
[1729102693906,6.4624,154.74,154.67,6.0962]
[1729102694091,30.238984,154.75,154.7,6.464]
[1729102695409,6.4626,154.74,154.7,6.464]
[1729102695902,30.239184,154.75,154.7,6.464]
[1729102696110,6.66331181,154.76,154.67,6.0962]
[1729102696302,6.4622,154.75,154.7,6.4639]
[1729102696820,6.4625,154.74,154.7,6.4639]
[1729102697801,6.4625,154.74,154.67,6.0962]
[1729102698003,6.4625,154.74,154.69,6.4643]
[1729102698317,30.0,154.72,154.69,6.4643]
[1729102698621,30.0,154.72,154.71,6.4637]
[1729102698799,30.0,154.72,154.66,16.4256]
[1729102699119,30.0,154.72,154.7,6.4637]
[1729102701597,6.4626,154.74,154.7,6.4637]
[1729102704203,6.4629,154.73,154.69,6.4643]
[1729102705624,13.12646648,154.74,154.7,6.4641]
[1729102707427,6.4627,154.74,154.7,6.4641]
[1729102708029,9.11668323,154.73,154.71,6.4634]
[1729102708331,30.0,154.72,154.71,6.4634]
[1729102709228,6.66320246,154.77,154.71,6.4634]
[1729102709432,30.238684,154.76,154.71,6.4634]
[1729102710008,30.238684,154.76,154.72,6.4632]
[1729102710416,6.4618,154.76,154.72,6.4632]
[1729102710732,30.239084,154.75,154.71,6.4633]
[1729102710905,6.4625,154.74,154.7,6.464]
[1729102711408,6.4621,154.75,154.71,6.4634]
[1729102711799,6.4621,154.75,154.71,6.4635]
[1729102712806,6.4617,154.76,154.72,6.4632]
[1729102713006,6.4617,154.76,154.66,16.4256]
[1729102713007,30.0,154.73,154.71,6.4636]
[1729102713729,6.4622,154.75,154.71,6.4636]
[1729102713927,23.776884,154.76,154.66,16.4256]
[1729102714132,6.4624,154.74,154.66,16.4256]
[1729102714327,6.4624,154.74,154.7,6.4638]
[1729102715912,23.776884,154.76,154.66,16.4256]
[1729102716427,6.4627,154.74,154.7,6.4638]
[1729102716822,6.463,154.73,154.66,16.4256]
[1729102717029,23.776884,154.76,154.66,16.4256]
[1729102717325,6.4633,154.72,154.68,6.4648]
[1729102718633,13.1262351,154.74,154.7,6.4638]
[1729102718803,6.4626,154.74,154.7,6.4638]
[1729102719003,6.4621,154.75,154.71,6.4634]
[1729102719208,30.43982486,154.77,154.72,6.463]
[1729102719209,6.4617,154.76,154.72,6.463]
[1729102719428,6.66294086,154.77,154.67,20.0]
[1729102719611,25.50112095,154.8,154.69,6.5194]
[1729102719927,6.4608,154.78,154.74,6.4621]
[1729102720514,6.4608,154.78,154.69,6.5194]
[1729102720712,15.62028946,154.78,154.73,6.4627]
[1729102720913,6.4608,154.78,154.73,6.4627]
[1729102722616,32.16287286,154.8,154.7,18.06605229]
[1729102722820,16.75127286,154.8,154.78,6.4606]
[1729102723126,10.08952095,154.8,154.78,6.4606]
[1729102726240,10.08952095,154.8,154.79,6.4603]
[1729102734881,6.65843375,154.87,154.78,18.06605229]
[1729102735048,13.11563375,154.87,154.83,6.4584]
[1729102735246,31.7371,154.92,154.79,23.776884]
[1729102735558,6.457,154.87,154.83,6.4586]
[1729102737764,6.4567,154.88,154.79,23.776884]
[1729102740874,6.457,154.87,154.79,23.776884]
[1729102742345,6.4567,154.88,154.8,20.0]
[1729102742541,6.65718187,154.9,154.82,18.06605229]
[1729102742769,6.65718187,154.9,154.83,20.0]
[1729102743065,8.95928938,154.91,154.83,36.3475]
[1729102743366,6.4561,154.9,154.83,36.3475]
[1729102744941,6.65585249,154.93,154.88,20.0]
[1729102745271,6.4528,154.98,154.88,20.0]
[1729102745272,6.4525,154.98,154.88,20.0]
[1729102745453,6.4525,154.98,154.87,24.20325229]
[1729102745454,22.8972,154.99,154.9,20.0]
[1729102745643,23.10289377,154.99,154.92,20.0]
[1729102745843,23.10289377,154.99,154.93,23.776884]
[1729102745844,6.65799377,154.99,154.93,23.776884]
[1729102746044,6.4503,155.04,154.97,11.51658866]
[1729102746269,16.1211,155.08,154.97,11.51658866]
[1729102746568,6.4503,155.04,154.97,11.51658866]
[1729102746755,6.4504,155.03,154.97,11.51658866]
[1729102747955,6.4504,155.03,154.96,20.0]
[1729102748150,6.4501,155.04,154.96,20.0]
[1729102748381,6.4504,155.03,154.96,20.0]
[1729102749562,6.4514,155.01,154.96,20.0]
[1729102749867,6.4507,155.03,154.96,20.0]
[1729102750454,6.4508,155.02,154.96,20.0]
[1729102751871,6.4513,155.01,154.96,20.0]
[1729102753275,6.4508,155.02,154.96,20.0]
[1729102755764,39.900484,155.06,154.92,61.77291607]
[1729102755983,6.4513,155.01,154.92,61.77291607]
[1729102757279,6.4508,155.02,154.92,61.77291607]
[1729102758280,6.4504,155.03,154.92,61.87291607]
[1729102758583,6.4504,155.03,154.95,20.0]
[1729102762182,6.4496,155.05,154.97,20.0]
[1729102762889,13.11754578,155.06,154.97,20.0]
[1729102763584,13.11754578,155.06,154.98,17.99603207]
[1729102764164,6.66844578,155.06,154.99,20.0]
[1729102766486,16.51906612,155.08,155.01,20.0]
[1729102766884,10.07076612,155.08,155.01,20.0]
[1729102767081,16.51896612,155.08,155.01,20.0]
[1729102767271,6.4492,155.06,154.99,20.0]
[1729102769490,6.4496,155.05,154.99,20.0]
[1729102769795,6.4487,155.07,155.0,0.1]
[1729102769968,6.4487,155.07,154.99,37.99603207]
[1729102771601,10.07076612,155.08,154.96,40.336084]
[1729102771891,6.4498,155.05,154.96,40.336084]
[1729102772766,6.4498,155.05,154.96,40.436084]
[1729102773168,9.02828949,155.04,154.97,20.0]
[1729102773367,6.4498,155.05,154.97,20.0]
[1729102776591,6.4512,155.01,154.95,17.99603207]
[1729102776901,6.4512,155.01,154.94,8.0268379]
[1729102777396,6.4512,155.01,154.92,34.36803207]
[1729102777903,6.4512,155.01,154.93,43.776884]
[1729102778098,39.901984,155.04,154.92,16.372]
[1729102778912,15.8302,155.0,154.9,6.1172]
[1729102779205,15.8302,155.0,154.88,15.5071]
[1729102779206,6.4534,154.96,154.88,15.5071]
[1729102779902,6.4534,154.96,154.88,15.6071]
[1729102780399,6.4528,154.97,154.88,15.6071]
[1729102780603,6.4528,154.97,154.89,20.0]
[1729102781403,6.4528,154.97,154.89,20.1]
[1729102782379,30.0,154.99,154.91,20.0]
[1729102783398,30.0,154.99,154.92,0.1]
[1729102784187,22.2821,155.0,154.92,0.1]
[1729102786003,22.2821,155.0,154.91,20.1]
[1729102787083,22.2821,155.0,154.92,0.1]
[1729102788086,22.2818,155.0,154.92,0.1]
[1729102788295,22.2818,155.0,154.91,20.1]
[1729102788515,15.8302,155.0,154.93,20.0]
[1729102789997,6.4512,155.01,154.93,20.0]
[1729102790203,6.67088197,155.02,154.96,17.99603207]
[1729102790525,21.5103,155.04,154.97,20.0]
[1729102790526,15.0603,155.04,154.97,20.0]
[1729102790708,6.6352,155.07,154.97,20.0]
[1729102790894,6.67317327,155.01,154.96,20.0]
[1729102791097,6.4509,155.02,154.95,20.0]
[1729102793117,6.4509,155.02,154.96,20.0]
[1729102794187,6.4516,155.0,154.96,31.51868553]
[1729102794413,6.4516,155.0,154.96,11.51868553]
[1729102795415,6.4516,155.0,154.94,20.0]
[1729102795718,23.776884,155.02,154.91,16.6644]
[1729102795888,6.4523,154.99,154.93,11.51868553]
[1729102796796,6.4525,154.98,154.91,28.18308553]
[1729102796996,6.4536,154.96,154.9,20.0]
[1729102797206,6.4536,154.96,154.87,27.95048553]
[1729102798225,6.4536,154.96,154.88,23.776884]
[1729102798424,6.4536,154.96,154.89,20.0]
[1729102798912,30.0,154.95,154.89,20.0]
[1729102800526,30.0,154.95,154.85,6.2011]
[1729102800713,36.2835,154.95,154.84,11.51868553]
[1729102801017,6.455,154.92,154.84,11.51868553]
[1729102801834,6.455,154.92,154.84,20.0]
[1729102802002,6.455,154.92,154.84,43.776884]
[1729102802193,6.455,154.92,154.84,43.876884]
[1729102805297,6.455,154.92,154.84,43.376884]
[1729102805718,13.13090113,154.94,154.84,61.40003328]
[1729102805916,6.4541,154.94,154.84,61.30003328]
[1729102807917,6.4541,154.94,154.84,43.276884]
[1729102809705,36.2835,154.95,154.84,43.276884]
[1729102809906,6.4546,154.93,154.84,43.276884]
[1729102811401,6.4549,154.92,154.84,43.276884]
[1729102811605,36.2835,154.95,154.84,19.5]
[1729102811799,6.4554,154.91,154.84,19.5]
[1729102812024,30.0,154.9,154.84,19.5]
[1729102813407,6.4564,154.89,154.82,20.0]
[1729102814428,30.0,154.9,154.82,20.0]
[1729102814628,6.4569,154.88,154.8,20.0]
[1729102814931,6.4569,154.88,154.84,6.4581]
[1729102815616,6.4572,154.87,154.83,6.4583]
[1729102816533,22.8,154.89,154.77,6.319]
[1729102816828,6.4585,154.84,154.77,6.319]
[1729102817130,6.4585,154.84,154.75,15.908]
[1729102817131,6.4585,154.84,154.79,6.4602]
[1729102818027,6.4585,154.84,154.79,5.9602]
[1729102819332,30.0,154.83,154.79,5.9602]
[1729102819838,30.0,154.83,154.8,6.4599]
[1729102820521,30.0,154.83,154.77,41.80003328]
[1729102820720,6.73838884,154.86,154.78,20.0]
[1729102820922,6.457,154.87,154.83,6.4586]
[1729102822430,6.4574,154.86,154.8,20.0]
[1729102822749,6.6587,154.89,154.8,20.0]
[1729102822915,6.4567,154.88,154.8,20.0]
[1729102823233,6.4563,154.89,154.81,11.5422579]
[1729102826349,6.4563,154.89,154.81,11.0422579]
[1729102826521,6.4566,154.88,154.8,20.0]
[1729102826715,6.4566,154.88,154.81,11.5422579]
[1729102826914,6.4563,154.89,154.81,11.5422579]
[1729102827115,16.81959368,154.9,154.83,11.5422579]
[1729102827331,23.27549368,154.9,154.83,11.5422579]
[1729102827720,23.27549368,154.9,154.81,11.5422579]
[1729102827926,6.4564,154.89,154.81,11.5422579]
[1729102829647,6.4571,154.87,154.8,20.0]
[1729102830050,6.4566,154.88,154.8,20.0]
[1729102832122,6.4566,154.88,154.77,23.876884]
[1729102832123,39.917684,154.89,154.78,20.0]
[1729102832433,6.458,154.85,154.78,20.0]
[1729102832650,6.4585,154.84,154.77,11.5422579]
[1729102832826,15.3334,154.85,154.75,22.3872]
[1729102833024,15.3334,154.85,154.75,27.4502579]
[1729102833351,6.4595,154.81,154.75,27.4502579]
[1729102833851,6.4595,154.81,154.77,6.4608]
[1729102834145,6.4591,154.83,154.78,6.4606]
[1729102835836,9.63082293,154.82,154.79,6.4603]
[1729102836035,6.4591,154.83,154.79,6.4603]
[1729102837439,15.3334,154.85,154.76,20.0]
[1729102837729,23.776884,154.84,154.73,11.5422579]
[1729102838453,6.4596,154.81,154.77,6.4608]
[1729102839258,30.0,154.8,154.77,6.4608]
[1729102839837,36.46,154.8,154.76,6.4616]
[1729102840958,36.46,154.8,154.76,5.9616]
[1729102842759,30.0,154.8,154.78,6.4604]
[1729102843836,6.459,154.83,154.75,11.5422579]
[1729102844038,6.459,154.83,154.77,11.5422579]
[1729102844343,6.4583,154.84,154.8,6.4598]
[1729102844562,22.06621896,154.85,154.82,6.459]
[1729102844861,30.0,154.83,154.81,6.4594]
[1729102845449,15.3334,154.85,154.81,6.4594]
[1729102847365,6.4575,154.86,154.81,6.4594]
[1729102847539,6.458,154.85,154.81,6.4594]
[1729102852552,6.73191473,154.88,154.79,11.5422579]
[1729102852768,6.4573,154.87,154.79,11.5422579]
[1729102853368,6.73191473,154.88,154.81,11.5422579]
[1729102853542,22.0573,154.89,154.81,11.5422579]
[1729102854272,15.601,154.89,154.81,11.5422579]
[1729102854452,6.4566,154.88,154.81,11.5422579]
[1729102855268,6.457,154.87,154.81,11.5422579]
[1729102855568,6.457,154.87,154.8,20.0]
[1729102857542,6.457,154.87,154.81,11.5422579]
[1729102857743,6.4575,154.86,154.78,11.5422579]
[1729102858352,6.4575,154.86,154.78,11.0422579]
[1729102859373,6.457,154.87,154.8,11.5422579]
[1729102860451,4.78463462,154.86,154.8,11.5422579]
[1729102860752,6.457,154.87,154.8,11.5422579]
[1729102860958,4.78476484,154.86,154.8,11.5422579]
[1729102861255,6.457,154.87,154.8,11.5422579]
[1729102861573,4.78854555,154.86,154.8,11.5422579]
[1729102861753,6.457,154.87,154.8,11.5422579]
[1729102862073,4.78862056,154.86,154.8,11.5422579]
[1729102862246,6.457,154.87,154.8,11.5422579]
[1729102862453,4.79003296,154.86,154.8,11.5422579]
[1729102862651,6.4567,154.88,154.8,11.5422579]
[1729102862652,6.4566,154.88,154.8,11.5422579]
[1729102862849,4.79032277,154.87,154.8,11.5422579]
[1729102863164,4.79032277,154.86,154.84,26.7404579]
[1729102863473,6.4542,154.94,154.85,20.0]
[1729102863676,4.79009183,154.93,154.86,11.5422579]
[1729102863848,4.79009183,154.92,154.86,11.5422579]
[1729102864050,4.79009183,154.91,154.86,11.5422579]
[1729102864280,6.4542,154.94,154.86,11.5422579]
[1729102864571,4.78719923,154.93,154.86,11.5422579]
[1729102864779,4.78719923,154.92,154.86,11.5422579]
[1729102865072,6.4546,154.93,154.86,11.5422579]
[1729102865271,4.78676764,154.92,154.86,11.5422579]
[1729102865448,6.4546,154.93,154.86,11.5422579]
[1729102865647,4.78669314,154.92,154.86,11.5422579]
[1729102865847,6.4546,154.93,154.86,11.5422579]
[1729102866048,4.78682133,154.92,154.86,11.5422579]
[1729102866276,6.4546,154.93,154.85,20.0]
[1729102866578,4.78554832,154.92,154.85,20.0]
[1729102866759,6.4546,154.93,154.85,20.0]
[1729102866950,4.78265775,154.92,154.85,20.0]
[1729102867275,6.4546,154.93,154.85,20.0]
[1729102867979,6.4546,154.93,154.86,11.5422579]
[1729102868873,6.72888375,154.95,154.84,15.1982]
[1729102868874,6.4558,154.9,154.84,15.1982]
[1729102869173,23.876884,154.94,154.81,17.7142579]
[1729102869374,23.776884,154.92,154.81,17.7142579]
[1729102869562,4.77506054,154.91,154.81,17.7142579]
[1729102869871,6.4566,154.88,154.81,17.7142579]
[1729102870382,6.4554,154.91,154.83,11.5422579]
[1729102870676,6.4558,154.9,154.83,11.5422579]
[1729102871057,6.4563,154.89,154.83,11.5422579]
[1729102871251,6.4558,154.9,154.83,11.5422579]
[1729102871579,6.4552,154.92,154.83,11.5422579]
[1729102871752,4.77346603,154.91,154.85,11.5422579]
[1729102871952,6.4552,154.92,154.85,11.5422579]
[1729102872855,6.4552,154.92,154.84,20.0]
[1729102873677,6.4551,154.92,154.84,20.0]